[Event "Live Chess"]
[Site "Chess.com"]
[Date "2023.05.21"]
[Round "-"]
[White "martynstanley"]
[Black "seasidecastle27"]
[Result "0-1"]
[WhiteElo "988"]
[BlackElo "1795"]
[TimeControl "300"]
[EndTime "0:05:07 PDT"]
[Termination "seasidecastle27 won by checkmate"]

1. d4 {[%clk 0:04:58.2]} 1... d5 {[%clk 0:04:57.7]} 2. e3 {[%clk 0:04:57.5]}
2... e6 {[%clk 0:04:56.7]} 3. Bd3 {[%clk 0:04:56.7]} 3... f5 {[%clk 0:04:54.5]}
4. f4 {[%clk 0:04:55.9]} 4... Nf6 {[%clk 0:04:53.5]} 5. Nf3 {[%clk 0:04:55.1]}
5... Nbd7 {[%clk 0:04:51.2]} 6. O-O {[%clk 0:04:54.6]} 6... Be7 {[%clk
0:04:49.1]} 7. Ne5 {[%clk 0:04:53.9]} 7... Nxe5 {[%clk 0:04:47.5]} 8. fxe5
{[%clk 0:04:53.2]} 8... Ne4 {[%clk 0:04:45.5]} 9. Nd2 {[%clk 0:04:51.4]} 9...
O-O {[%clk 0:04:43.6]} 10. Rf3 {[%clk 0:04:50.4]} 10... c5 {[%clk 0:04:35.2]}
11. c3 {[%clk 0:04:49.5]} 11... cxd4 {[%clk 0:04:26.8]} 12. exd4 {[%clk
0:04:48.4]} 12... Bd7 {[%clk 0:04:24.3]} 13. Rh3 {[%clk 0:04:44.4]} 13... g6
{[%clk 0:04:18.4]} 14. Bc2 {[%clk 0:04:38.5]} 14... Bb5 {[%clk 0:04:13.4]} 15.
Nxe4 {[%clk 0:04:35.3]} 15... dxe4 {[%clk 0:04:03.3]} 16. Be3 {[%clk 0:04:33.6]}
16... Rc8 {[%clk 0:03:49]} 17. Qd2 {[%clk 0:04:32.5]} 17... Rf7 {[%clk
0:03:29.8]} 18. Bh6 {[%clk 0:04:27.1]} 18... Bf8 {[%clk 0:03:26.6]} 19. Bxf8
{[%clk 0:04:25.2]} 19... Qxf8 {[%clk 0:03:24.8]} 20. Qh6 {[%clk 0:04:22.5]}
20... Qxh6 {[%clk 0:03:21.8]} 21. Rxh6 {[%clk 0:04:21.5]} 21... Kg7 {[%clk
0:03:20]} 22. Rh3 {[%clk 0:04:19.9]} 22... Bc6 {[%clk 0:03:06.3]} 23. Re3 {[%clk
0:04:14.9]} 23... b5 {[%clk 0:03:04.2]} 24. Kf2 {[%clk 0:04:13.6]} 24... f4
{[%clk 0:02:55.2]} 25. Ree1 {[%clk 0:04:11.2]} 25... e3+ {[%clk 0:02:53.2]} 26.
Ke2 {[%clk 0:04:09.1]} 26... Bxg2 {[%clk 0:02:49.5]} 27. a4 {[%clk 0:04:05]}
27... b4 {[%clk 0:02:45.8]} 28. Bd3 {[%clk 0:03:55.5]} 28... bxc3 {[%clk
0:02:43.6]} 29. bxc3 {[%clk 0:03:54.7]} 29... Rxc3 {[%clk 0:02:39.7]} 30. Rec1
{[%clk 0:03:53.6]} 30... Rfc7 {[%clk 0:02:36.7]} 31. Rxc3 {[%clk 0:03:51.8]}
31... Rxc3 {[%clk 0:02:34.7]} 32. Rd1 {[%clk 0:03:49.9]} 32... Ra3 {[%clk
0:02:28.2]} 33. a5 {[%clk 0:03:47]} 33... Ra2+ {[%clk 0:02:23]} 34. Ke1 {[%clk
0:03:43.1]} 34... f3 {[%clk 0:02:18.5]} 35. Bf1 {[%clk 0:03:36]} 35... f2#
{[%clk 0:02:15.9]} 0-1

[Event "Live Chess"]
[Site "Chess.com"]
[Date "2023.05.21"]
[Round "-"]
[White "Davidagye"]
[Black "Ferrarifan27"]
[Result "0-1"]
[WhiteElo "1669"]
[BlackElo "2059"]
[TimeControl "300"]
[EndTime "0:05:33 PDT"]
[Termination "Ferrarifan27 won by resignation"]

1. b4 {[%clk 0:04:58.2]} 1... d5 {[%clk 0:04:58]} 2. Bb2 {[%clk 0:04:56.2]} 2...
Nf6 {[%clk 0:04:52.3]} 3. Nf3 {[%clk 0:04:55.4]} 3... Bf5 {[%clk 0:04:51]} 4. e3
{[%clk 0:04:53.9]} 4... e6 {[%clk 0:04:48.8]} 5. a3 {[%clk 0:04:51.9]} 5... Be7
{[%clk 0:04:45.5]} 6. c4 {[%clk 0:04:50.3]} 6... O-O {[%clk 0:04:43.4]} 7. d4
{[%clk 0:04:49.1]} 7... c6 {[%clk 0:04:41.4]} 8. Nbd2 {[%clk 0:04:48.3]} 8...
Nbd7 {[%clk 0:04:39.8]} 9. Be2 {[%clk 0:04:43.9]} 9... a5 {[%clk 0:04:34.1]} 10.
b5 {[%clk 0:04:37.5]} 10... h6 {[%clk 0:04:31.7]} 11. a4 {[%clk 0:04:33.3]}
11... Bb4 {[%clk 0:04:24.6]} 12. O-O {[%clk 0:04:31.2]} 12... Re8 {[%clk
0:04:21.2]} 13. Ba3 {[%clk 0:04:28.5]} 13... Bxa3 {[%clk 0:04:18]} 14. Rxa3
{[%clk 0:04:27.2]} 14... Qe7 {[%clk 0:04:17.3]} 15. c5 {[%clk 0:04:25]} 15... e5
{[%clk 0:04:01.3]} 16. Qb3 {[%clk 0:03:56.3]} 16... exd4 {[%clk 0:03:55.2]} 17.
Nxd4 {[%clk 0:03:54.7]} 17... Nxc5 {[%clk 0:03:53.8]} 18. Nxf5 {[%clk
0:03:50.5]} 18... Qe5 {[%clk 0:03:46.5]} 19. Qc2 {[%clk 0:03:40.2]} 19... Nce4
{[%clk 0:03:37.8]} 20. Nxe4 {[%clk 0:03:34.7]} 20... Nxe4 {[%clk 0:03:36]} 21.
Ng3 {[%clk 0:03:31.1]} 21... Qe7 {[%clk 0:03:14.7]} 22. Rb3 {[%clk 0:03:26.3]}
22... c5 {[%clk 0:03:09.4]} 23. Nxe4 {[%clk 0:03:22.7]} 23... dxe4 {[%clk
0:03:09.3]} 24. Qc4 {[%clk 0:03:19.8]} 24... b6 {[%clk 0:03:05.9]} 25. Rd1
{[%clk 0:03:17.5]} 25... Rad8 {[%clk 0:03:04.8]} 26. Rbb1 {[%clk 0:03:15.2]}
26... Qe5 {[%clk 0:02:57.8]} 27. Qb3 {[%clk 0:02:59.1]} 27... h5 {[%clk
0:02:52.3]} 28. Bc4 {[%clk 0:02:56.7]} 28... Qf6 {[%clk 0:02:41.3]} 29. Rxd8
{[%clk 0:02:47.5]} 29... Rxd8 {[%clk 0:02:40]} 30. Rd1 {[%clk 0:02:46.6]} 30...
Rxd1+ {[%clk 0:02:35.5]} 31. Qxd1 {[%clk 0:02:44.8]} 31... h4 {[%clk 0:02:34.7]}
32. h3 {[%clk 0:02:33.9]} 32... Qc3 {[%clk 0:02:29]} 33. Qd5 {[%clk 0:02:31.4]}
33... Qe1+ {[%clk 0:02:23.4]} 34. Kh2 {[%clk 0:02:22.1]} 34... Qxf2 {[%clk
0:02:21.9]} 35. Qd8+ {[%clk 0:02:16.7]} 35... Kh7 {[%clk 0:02:20.5]} 36. Qd1
{[%clk 0:02:01.1]} 36... Qg3+ {[%clk 0:01:43.7]} 37. Kg1 {[%clk 0:01:24.2]}
37... Qxe3+ {[%clk 0:01:40.2]} 38. Kh1 {[%clk 0:01:20.7]} 38... Qf2 {[%clk
0:01:00.4]} 39. Qh5+ {[%clk 0:01:18]} 39... Kg8 {[%clk 0:00:59]} 40. Qxf7+
{[%clk 0:01:15.2]} 40... Qxf7 {[%clk 0:00:57]} 41. Bxf7+ {[%clk 0:01:13.6]}
41... Kxf7 {[%clk 0:00:56.9]} 42. Kg1 {[%clk 0:01:12.3]} 42... Ke6 {[%clk
0:00:55.9]} 43. Kf2 {[%clk 0:01:11.7]} 43... Kd5 {[%clk 0:00:54.9]} 44. Ke3
{[%clk 0:01:11.1]} 44... Ke5 {[%clk 0:00:54]} 0-1

[Event "Live Chess"]
[Site "Chess.com"]
[Date "2023.05.21"]
[Round "-"]
[White "Singapourfeuj"]
[Black "Ian-Morley"]
[Result "1-0"]
[WhiteElo "2224"]
[BlackElo "1038"]
[TimeControl "300"]
[EndTime "0:05:39 PDT"]
[Termination "Singapourfeuj won by resignation"]

1. d4 {[%clk 0:04:58.1]} 1... e5 {[%clk 0:04:58.9]} 2. dxe5 {[%clk 0:04:56.9]}
2... Nc6 {[%clk 0:04:57.5]} 3. Nf3 {[%clk 0:04:56.2]} 3... Qe7 {[%clk
0:04:56.8]} 4. e3 {[%clk 0:04:54.9]} 4... Qb4+ {[%clk 0:04:53.2]} 5. c3 {[%clk
0:04:53]} 5... Qe7 {[%clk 0:04:51.6]} 6. Be2 {[%clk 0:04:51.8]} 6... d6 {[%clk
0:04:50.8]} 7. Nbd2 {[%clk 0:04:50.3]} 7... dxe5 {[%clk 0:04:49.8]} 8. e4 {[%clk
0:04:48.5]} 8... Nf6 {[%clk 0:04:45.5]} 9. h3 {[%clk 0:04:47.3]} 9... g6 {[%clk
0:04:43.2]} 10. O-O {[%clk 0:04:46]} 10... Bh6 {[%clk 0:04:42.2]} 11. Bb5 {[%clk
0:04:44.3]} 11... Bxd2 {[%clk 0:04:39.2]} 12. Bxd2 {[%clk 0:04:40.7]} 12... Nxe4
{[%clk 0:04:36]} 13. Re1 {[%clk 0:04:39.6]} 13... Nxd2 {[%clk 0:04:34.2]} 14.
Bxc6+ {[%clk 0:04:36.5]} 14... bxc6 {[%clk 0:04:32.7]} 15. Nxe5 {[%clk
0:04:33.4]} 15... O-O {[%clk 0:04:26.1]} 16. Qxd2 {[%clk 0:04:32.4]} 16... f6
{[%clk 0:04:23.5]} 17. Nxc6 {[%clk 0:04:31.1]} 17... Qd6 {[%clk 0:04:21.9]} 18.
Ne7+ {[%clk 0:04:29]} 18... Kg7 {[%clk 0:04:20.9]} 19. Qxd6 {[%clk 0:04:27.2]}
19... cxd6 {[%clk 0:04:20.1]} 20. Nxc8 {[%clk 0:04:26.2]} 20... Raxc8 {[%clk
0:04:19.2]} 21. Rad1 {[%clk 0:04:25.1]} 21... Rc6 {[%clk 0:04:17.5]} 22. Re7+
{[%clk 0:04:23.7]} 22... Rf7 {[%clk 0:04:16]} 23. Rxf7+ {[%clk 0:04:22.9]} 23...
Kxf7 {[%clk 0:04:15.5]} 24. b3 {[%clk 0:04:22.1]} 24... Ke6 {[%clk 0:04:14.8]}
25. c4 {[%clk 0:04:21]} 25... a5 {[%clk 0:04:13.5]} 26. Kf1 {[%clk 0:04:19.2]}
26... f5 {[%clk 0:04:11.6]} 27. Ke2 {[%clk 0:04:18]} 27... Rc5 {[%clk
0:04:10.8]} 28. f4 {[%clk 0:04:16.8]} 28... d5 {[%clk 0:04:09.6]} 29. cxd5+
{[%clk 0:04:15.6]} 29... Rxd5 {[%clk 0:04:08.9]} 30. Rxd5 {[%clk 0:04:14.6]}
30... Kxd5 {[%clk 0:04:08.5]} 31. Kd3 {[%clk 0:04:13.7]} 31... h6 {[%clk
0:04:06.7]} 32. g3 {[%clk 0:04:11.5]} 32... g5 {[%clk 0:04:05.8]} 33. a3 {[%clk
0:04:09.9]} 33... gxf4 {[%clk 0:03:58.4]} 34. gxf4 {[%clk 0:04:08.9]} 34... h5
{[%clk 0:03:57.9]} 35. h4 {[%clk 0:04:06]} 35... Kc5 {[%clk 0:03:52.1]} 36. Kc3
{[%clk 0:04:05.1]} 36... Kd5 {[%clk 0:03:51.2]} 37. b4 {[%clk 0:04:04]} 37...
axb4+ {[%clk 0:03:44.2]} 38. axb4 {[%clk 0:04:03]} 38... Kc6 {[%clk 0:03:35.4]}
39. Kd4 {[%clk 0:04:01.9]} 39... Kb5 {[%clk 0:03:34.4]} 40. Ke5 {[%clk
0:04:01.2]} 40... Kxb4 {[%clk 0:03:33.8]} 41. Kxf5 {[%clk 0:04:00.6]} 41... Kc5
{[%clk 0:03:33.3]} 42. Kg6 {[%clk 0:04:00.1]} 42... Kd6 {[%clk 0:03:32.8]} 43.
f5 {[%clk 0:03:59.5]} 1-0

[Event "Live Chess"]
[Site "Chess.com"]
[Date "2023.05.21"]
[Round "-"]
[White "MaximKris"]
[Black "MarkLim1"]
[Result "1-0"]
[WhiteElo "1832"]
[BlackElo "1680"]
[TimeControl "300"]
[EndTime "0:05:44 PDT"]
[Termination "MaximKris won by resignation"]

1. e4 {[%clk 0:04:58.4]} 1... e6 {[%clk 0:04:59]} 2. Nf3 {[%clk 0:04:56.6]} 2...
d5 {[%clk 0:04:58.3]} 3. exd5 {[%clk 0:04:56.5]} 3... exd5 {[%clk 0:04:57.6]} 4.
d4 {[%clk 0:04:56.4]} 4... Bd6 {[%clk 0:04:56.9]} 5. Bd3 {[%clk 0:04:55.5]} 5...
Nc6 {[%clk 0:04:56.1]} 6. O-O {[%clk 0:04:55.1]} 6... Nge7 {[%clk 0:04:55.7]} 7.
Re1 {[%clk 0:04:54.7]} 7... Bg4 {[%clk 0:04:54.8]} 8. Nc3 {[%clk 0:04:54.1]}
8... Qd7 {[%clk 0:04:54.1]} 9. Nxd5 {[%clk 0:04:52.7]} 9... O-O-O {[%clk
0:04:52.6]} 10. Nxe7+ {[%clk 0:04:51.1]} 10... Bxe7 {[%clk 0:04:51.2]} 11. h3
{[%clk 0:04:49.5]} 11... Bxf3 {[%clk 0:04:47.4]} 12. Qxf3 {[%clk 0:04:49.4]}
12... Nxd4 {[%clk 0:04:46.6]} 13. Qd1 {[%clk 0:04:47.6]} 13... Nc6 {[%clk
0:04:41.3]} 14. Bf4 {[%clk 0:04:44.4]} 14... f6 {[%clk 0:04:39.9]} 15. a4 {[%clk
0:04:36]} 15... g5 {[%clk 0:04:37.6]} 16. Bh2 {[%clk 0:04:33.9]} 16... h5 {[%clk
0:04:36.3]} 17. Qf3 {[%clk 0:04:27.7]} 17... Kb8 {[%clk 0:04:33.5]} 18. Bb5
{[%clk 0:04:22.1]} 18... g4 {[%clk 0:04:21.5]} 19. Bxc6 {[%clk 0:04:16.1]} 19...
bxc6 {[%clk 0:04:19.5]} 20. Qb3+ {[%clk 0:04:13.7]} 20... Ka8 {[%clk 0:04:15.9]}
21. h4 {[%clk 0:04:07.9]} 21... Bd6 {[%clk 0:04:08.7]} 22. Bxd6 {[%clk 0:04:04]}
22... cxd6 {[%clk 0:04:07.8]} 23. Qe6 {[%clk 0:03:59.2]} 23... f5 {[%clk
0:03:52.4]} 24. Qxd7 {[%clk 0:03:56.9]} 24... Rxd7 {[%clk 0:03:51]} 25. Rad1
{[%clk 0:03:56.1]} 25... Rf8 {[%clk 0:03:44]} 26. Re6 {[%clk 0:03:52.5]} 26...
Kb7 {[%clk 0:03:32.5]} 27. Rexd6 {[%clk 0:03:49.7]} 27... Rxd6 {[%clk
0:03:30.5]} 28. Rxd6 {[%clk 0:03:49.6]} 28... f4 {[%clk 0:03:28.9]} 29. Rh6
{[%clk 0:03:48.1]} 29... f3 {[%clk 0:03:26.8]} 30. gxf3 {[%clk 0:03:46.7]} 30...
gxf3 {[%clk 0:03:16.7]} 31. Rxh5 {[%clk 0:03:45.9]} 31... Rd8 {[%clk 0:03:15.7]}
32. Rh7+ {[%clk 0:03:44]} 32... Kb6 {[%clk 0:03:14.5]} 33. Kh2 {[%clk
0:03:43.1]} 33... Rd2 {[%clk 0:03:13.3]} 34. Kg3 {[%clk 0:03:41.9]} 34... Rxc2
{[%clk 0:03:12.4]} 35. Kxf3 {[%clk 0:03:41.1]} 35... Rxb2 {[%clk 0:03:11.6]} 36.
Rh8 {[%clk 0:03:38.9]} 36... Rb3+ {[%clk 0:03:07.9]} 37. Kg4 {[%clk 0:03:36.6]}
37... Rb4+ {[%clk 0:03:05.3]} 38. f4 {[%clk 0:03:35.4]} 38... Rxa4 {[%clk
0:03:04.2]} 39. h5 {[%clk 0:03:34.3]} 39... Ra1 {[%clk 0:02:56.7]} 40. h6 {[%clk
0:03:32.5]} 40... c5 {[%clk 0:02:54.6]} 41. h7 {[%clk 0:03:30.6]} 41... Rg1+
{[%clk 0:02:52]} 42. Kf5 {[%clk 0:03:28.8]} 1-0

[Event "Live Chess"]
[Site "Chess.com"]
[Date "2023.05.21"]
[Round "-"]
[White "Nazar_777"]
[Black "Shepherds_Pie"]
[Result "0-1"]
[WhiteElo "1607"]
[BlackElo "1928"]
[TimeControl "300"]
[EndTime "0:05:46 PDT"]
[Termination "Shepherds_Pie won by checkmate"]

1. e3 {[%clk 0:04:52.6]} 1... Nf6 {[%clk 0:04:58.4]} 2. h4 {[%clk 0:04:52]} 2...
h5 {[%clk 0:04:56]} 3. a3 {[%clk 0:04:51.3]} 3... b6 {[%clk 0:04:54.5]} 4. c4
{[%clk 0:04:50.6]} 4... Bb7 {[%clk 0:04:53.4]} 5. Nf3 {[%clk 0:04:49.4]} 5... e6
{[%clk 0:04:52.1]} 6. Be2 {[%clk 0:04:48.8]} 6... c5 {[%clk 0:04:50.3]} 7. Nc3
{[%clk 0:04:48.1]} 7... Be7 {[%clk 0:04:48.8]} 8. Qc2 {[%clk 0:04:47.6]} 8... d5
{[%clk 0:04:47.6]} 9. cxd5 {[%clk 0:04:46.5]} 9... exd5 {[%clk 0:04:46]} 10. b3
{[%clk 0:04:45.6]} 10... Nbd7 {[%clk 0:04:44.6]} 11. Bb2 {[%clk 0:04:44.7]}
11... a6 {[%clk 0:04:43.7]} 12. Rc1 {[%clk 0:04:43.6]} 12... Qc7 {[%clk
0:04:42.1]} 13. Ng5 {[%clk 0:04:41.1]} 13... Rc8 {[%clk 0:04:39]} 14. Bf3 {[%clk
0:04:39.8]} 14... d4 {[%clk 0:04:36.4]} 15. Nce4 {[%clk 0:04:36.5]} 15... Nxe4
{[%clk 0:04:33.7]} 16. Bxe4 {[%clk 0:04:34.8]} 16... Bxe4 {[%clk 0:04:30.8]} 17.
Qxe4 {[%clk 0:04:33.8]} 17... Nf6 {[%clk 0:04:24]} 18. Qc2 {[%clk 0:04:32.1]}
18... Qe5 {[%clk 0:04:18]} 19. b4 {[%clk 0:04:29.5]} 19... Qd5 {[%clk
0:04:08.7]} 20. Nf3 {[%clk 0:04:26.7]} 20... O-O {[%clk 0:04:00.7]} 21. Rg1
{[%clk 0:04:21.3]} 21... d3 {[%clk 0:03:54]} 22. Qc3 {[%clk 0:04:17.4]} 22...
Qd7 {[%clk 0:03:26.9]} 23. g4 {[%clk 0:04:15.1]} 23... cxb4 {[%clk 0:03:25.5]}
24. Qe5 {[%clk 0:04:07.4]} 24... Rxc1+ {[%clk 0:03:22.4]} 25. Bxc1 {[%clk
0:04:06.1]} 25... Nxg4 {[%clk 0:03:18.2]} 26. Qa1 {[%clk 0:03:57.6]} 26... bxa3
{[%clk 0:03:13.6]} 27. Ne5 {[%clk 0:03:56.1]} 27... Nxe5 {[%clk 0:03:03.1]} 28.
Qxe5 {[%clk 0:03:54.1]} 28... g6 {[%clk 0:03:00.5]} 29. f4 {[%clk 0:03:39.6]}
29... Bxh4+ {[%clk 0:02:53.9]} 30. Kf1 {[%clk 0:03:33.8]} 30... Qh3+ {[%clk
0:02:50.9]} 31. Rg2 {[%clk 0:03:32.1]} 31... Qf3+ {[%clk 0:02:46.2]} 32. Kg1
{[%clk 0:03:29]} 32... Qd1+ {[%clk 0:02:40]} 33. Kh2 {[%clk 0:03:22.2]} 33...
Qxc1 {[%clk 0:02:38.6]} 34. f5 {[%clk 0:03:21.1]} 34... g5 {[%clk 0:02:29.4]}
35. f6 {[%clk 0:03:15.3]} 35... Qc5 {[%clk 0:02:22.9]} 36. Qe4 {[%clk 0:02:59]}
36... Qd6+ {[%clk 0:02:20.5]} 37. Kh1 {[%clk 0:02:56.8]} 37... Rc8 {[%clk
0:02:17.2]} 38. Qxh4 {[%clk 0:02:52.3]} 38... Rc1+ {[%clk 0:02:14]} 39. Rg1
{[%clk 0:02:33.7]} 39... Rxg1+ {[%clk 0:02:12]} 40. Kxg1 {[%clk 0:02:32.8]}
40... gxh4 {[%clk 0:02:10.7]} 41. Kf2 {[%clk 0:02:31.8]} 41... Qg3+ {[%clk
0:02:08.7]} 42. Kf1 {[%clk 0:02:29.1]} 42... h3 {[%clk 0:02:07]} 43. e4 {[%clk
0:02:28.1]} 43... h2 {[%clk 0:02:05.7]} 44. e5 {[%clk 0:02:27.3]} 44... h1=Q#
{[%clk 0:02:05.6]} 0-1

[Event "Live Chess"]
[Site "Chess.com"]
[Date "2023.05.21"]
[Round "-"]
[White "raminguy"]
[Black "Hacker_2009"]
[Result "1-0"]
[WhiteElo "1937"]
[BlackElo "1943"]
[TimeControl "300"]
[EndTime "0:05:52 PDT"]
[Termination "raminguy won by resignation"]

1. d4 {[%clk 0:04:56.5]} 1... Nf6 {[%clk 0:04:58]} 2. Nc3 {[%clk 0:04:53.9]}
2... d5 {[%clk 0:04:55.5]} 3. Bf4 {[%clk 0:04:52.3]} 3... e6 {[%clk 0:04:52.1]}
4. Nb5 {[%clk 0:04:50.9]} 4... Bd6 {[%clk 0:04:47.6]} 5. Nxd6+ {[%clk
0:04:49.4]} 5... cxd6 {[%clk 0:04:47.5]} 6. e3 {[%clk 0:04:48.9]} 6... Nc6
{[%clk 0:04:45.9]} 7. Nf3 {[%clk 0:04:48.4]} 7... Qe7 {[%clk 0:04:43.3]} 8. Be2
{[%clk 0:04:46.8]} 8... e5 {[%clk 0:04:42.1]} 9. Bg3 {[%clk 0:04:46]} 9... e4
{[%clk 0:04:37.1]} 10. Nd2 {[%clk 0:04:44.9]} 10... O-O {[%clk 0:04:34.2]} 11.
O-O {[%clk 0:04:43.9]} 11... b6 {[%clk 0:04:32.8]} 12. c4 {[%clk 0:04:42.6]}
12... dxc4 {[%clk 0:04:29.5]} 13. Nxc4 {[%clk 0:04:42.5]} 13... d5 {[%clk
0:04:28.3]} 14. Bd6 {[%clk 0:04:41.7]} 14... Qd7 {[%clk 0:04:23.7]} 15. Bxf8
{[%clk 0:04:41.6]} 15... Kxf8 {[%clk 0:04:22.9]} 16. Nd2 {[%clk 0:04:33]} 16...
Bb7 {[%clk 0:04:21.1]} 17. Rc1 {[%clk 0:04:30.9]} 17... Rc8 {[%clk 0:04:20.4]}
18. Bb5 {[%clk 0:04:25.3]} 18... Qd6 {[%clk 0:04:18.3]} 19. a3 {[%clk
0:04:22.3]} 19... a6 {[%clk 0:03:52.8]} 20. Bxc6 {[%clk 0:04:18.6]} 20... Rxc6
{[%clk 0:03:18.6]} 21. Rxc6 {[%clk 0:04:14.8]} 21... Bxc6 {[%clk 0:03:16.5]} 22.
Qc2 {[%clk 0:04:11.9]} 22... Bb5 {[%clk 0:03:10.5]} 23. Rc1 {[%clk 0:04:05.8]}
23... Bd3 {[%clk 0:02:41.7]} 24. Qc8+ {[%clk 0:04:02.3]} 24... Ne8 {[%clk
0:02:13.2]} 25. Rc6 {[%clk 0:03:39.7]} 25... Qe7 {[%clk 0:01:51.3]} 26. Rxb6
{[%clk 0:03:36]} 26... Qa7 {[%clk 0:01:47.6]} 27. Rb8 {[%clk 0:03:30.5]} 27...
Bb5 {[%clk 0:01:46.5]} 28. Nb3 {[%clk 0:03:26.1]} 28... Bd7 {[%clk 0:01:43.6]}
29. Qb7 {[%clk 0:03:18.9]} 29... Qxb7 {[%clk 0:01:41.9]} 30. Rxb7 {[%clk
0:03:17.8]} 30... Bb5 {[%clk 0:01:41.3]} 31. Rb8 {[%clk 0:03:03.9]} 31... Ke7
{[%clk 0:01:38.9]} 32. Nc5 {[%clk 0:03:02.6]} 32... Nd6 {[%clk 0:01:30.6]} 33.
b3 {[%clk 0:02:55.3]} 33... Be2 {[%clk 0:01:24.6]} 34. a4 {[%clk 0:02:46.4]}
34... h6 {[%clk 0:01:06.6]} 35. Ra8 {[%clk 0:02:41.5]} 35... g5 {[%clk
0:00:41.8]} 36. Nxa6 {[%clk 0:02:38.2]} 36... f5 {[%clk 0:00:37.4]} 37. Nc5
{[%clk 0:02:34.8]} 37... f4 {[%clk 0:00:29.3]} 38. Ra7+ {[%clk 0:02:30.4]} 38...
Kf6 {[%clk 0:00:26.9]} 39. Rh7 {[%clk 0:02:26.6]} 39... Nf5 {[%clk 0:00:20.4]}
40. a5 {[%clk 0:02:18.8]} 40... fxe3 {[%clk 0:00:18.1]} 41. fxe3 {[%clk
0:02:10.5]} 41... Nxe3 {[%clk 0:00:16.8]} 42. a6 {[%clk 0:02:09.6]} 42... Bxa6
{[%clk 0:00:14.7]} 43. Nxa6 {[%clk 0:02:08.6]} 43... Nf5 {[%clk 0:00:13.6]} 44.
b4 {[%clk 0:02:06.6]} 44... Nxd4 {[%clk 0:00:12]} 45. Rxh6+ {[%clk 0:02:00.2]}
45... Kf5 {[%clk 0:00:10.6]} 46. Nc7 {[%clk 0:01:57.2]} 46... e3 {[%clk
0:00:08.1]} 47. Kf1 {[%clk 0:01:55.6]} 47... Ke4 {[%clk 0:00:06.9]} 48. Ne6
{[%clk 0:01:46.3]} 48... Kd3 {[%clk 0:00:03.3]} 49. Nxd4 {[%clk 0:01:44.4]}
49... Kxd4 {[%clk 0:00:03.2]} 50. Ke2 {[%clk 0:01:43.2]} 1-0

[Event "Live Chess"]
[Site "Chess.com"]
[Date "2023.05.21"]
[Round "-"]
[White "AttackingSnowLeopard"]
[Black "martynstanley"]
[Result "1-0"]
[WhiteElo "2191"]
[BlackElo "988"]
[TimeControl "300"]
[EndTime "0:06:12 PDT"]
[Termination "AttackingSnowLeopard won by checkmate"]

1. d4 {[%clk 0:04:58.8]} 1... e6 {[%clk 0:04:59.7]} 2. c4 {[%clk 0:04:58.3]}
2... d5 {[%clk 0:04:59.1]} 3. Nf3 {[%clk 0:04:56.9]} 3... c5 {[%clk 0:04:58.1]}
4. Nc3 {[%clk 0:04:55.9]} 4... Nc6 {[%clk 0:04:57.5]} 5. cxd5 {[%clk 0:04:55.1]}
5... exd5 {[%clk 0:04:56.2]} 6. g3 {[%clk 0:04:54.8]} 6... Nge7 {[%clk
0:04:53.9]} 7. Bg2 {[%clk 0:04:54.3]} 7... Qb6 {[%clk 0:04:52.2]} 8. dxc5 {[%clk
0:04:51.4]} 8... Qxc5 {[%clk 0:04:50.9]} 9. Be3 {[%clk 0:04:50.4]} 9... d4
{[%clk 0:04:49.7]} 10. Nxd4 {[%clk 0:04:49.2]} 10... Nxd4 {[%clk 0:04:48.2]} 11.
Bxd4 {[%clk 0:04:48.5]} 11... Qd6 {[%clk 0:04:45]} 12. O-O {[%clk 0:04:47.9]}
12... Rb8 {[%clk 0:04:40.6]} 13. Nb5 {[%clk 0:04:46.9]} 13... Qd7 {[%clk
0:04:38.5]} 14. Bxa7 {[%clk 0:04:43.7]} 14... Ra8 {[%clk 0:04:33.7]} 15. Bb6
{[%clk 0:04:41.4]} 15... Rb8 {[%clk 0:04:31.7]} 16. Nc7+ {[%clk 0:04:40.4]}
16... Qxc7 {[%clk 0:04:27.1]} 17. Bxc7 {[%clk 0:04:39.9]} 17... Ra8 {[%clk
0:04:26.5]} 18. Qd8# {[%clk 0:04:38.4]} 1-0

[Event "Live Chess"]
[Site "Chess.com"]
[Date "2023.05.21"]
[Round "-"]
[White "Supertromp"]
[Black "nigelst"]
[Result "1-0"]
[WhiteElo "2133"]
[BlackElo "1699"]
[TimeControl "300"]
[EndTime "0:06:26 PDT"]
[Termination "Supertromp won by resignation"]

1. e4 {[%clk 0:04:57.1]} 1... c6 {[%clk 0:04:59]} 2. d4 {[%clk 0:04:50.3]} 2...
d5 {[%clk 0:04:57.7]} 3. exd5 {[%clk 0:04:46]} 3... cxd5 {[%clk 0:04:56.5]} 4.
Bd3 {[%clk 0:04:45.6]} 4... Nf6 {[%clk 0:04:55.1]} 5. Bf4 {[%clk 0:04:43.9]}
5... Nc6 {[%clk 0:04:53.6]} 6. c3 {[%clk 0:04:43.3]} 6... Bg4 {[%clk 0:04:51.9]}
7. Qb3 {[%clk 0:04:42.6]} 7... Na5 {[%clk 0:04:44.7]} 8. Qa4+ {[%clk 0:04:33.3]}
8... Bd7 {[%clk 0:04:42]} 9. Qc2 {[%clk 0:04:32]} 9... Rc8 {[%clk 0:04:39.7]}
10. Nf3 {[%clk 0:04:26.8]} 10... Qb6 {[%clk 0:04:36.1]} 11. O-O {[%clk
0:04:20.2]} 11... Bb5 {[%clk 0:04:34]} 12. Bxb5+ {[%clk 0:03:58.9]} 12... Qxb5
{[%clk 0:04:32.4]} 13. Na3 {[%clk 0:03:56.7]} 13... Qb6 {[%clk 0:04:24.5]} 14.
Ne5 {[%clk 0:03:48.4]} 14... e6 {[%clk 0:04:20.2]} 15. b4 {[%clk 0:03:18]} 15...
Nc6 {[%clk 0:04:17.9]} 16. Nb1 {[%clk 0:03:15.7]} 16... Nxd4 {[%clk 0:04:05.9]}
17. Qa4+ {[%clk 0:02:54.4]} 17... Nc6 {[%clk 0:04:01]} 18. Be3 {[%clk
0:02:43.8]} 18... Qc7 {[%clk 0:03:58.6]} 19. Nxc6 {[%clk 0:02:37.3]} 19... bxc6
{[%clk 0:03:53.1]} 20. Qxa7 {[%clk 0:02:34.2]} 20... Qxa7 {[%clk 0:03:50.6]} 21.
Bxa7 {[%clk 0:02:34.1]} 21... Bd6 {[%clk 0:03:48.1]} 22. Nd2 {[%clk 0:02:32.2]}
22... O-O {[%clk 0:03:45.5]} 23. Nb3 {[%clk 0:02:31.2]} 23... Ne4 {[%clk
0:03:41.5]} 24. Rac1 {[%clk 0:02:26.6]} 24... Ra8 {[%clk 0:03:31.5]} 25. Bc5
{[%clk 0:02:14.5]} 25... Bxc5 {[%clk 0:03:28.8]} 26. bxc5 {[%clk 0:02:09.7]}
26... Rxa2 {[%clk 0:03:24.8]} 27. f3 {[%clk 0:02:07.3]} 27... Nd2 {[%clk
0:03:15.1]} 28. Nxd2 {[%clk 0:01:49.7]} 28... Rxd2 {[%clk 0:03:12.8]} 29. Rf2
{[%clk 0:01:49.1]} 29... Rxf2 {[%clk 0:03:10.4]} 30. Kxf2 {[%clk 0:01:45]} 30...
Rb8 {[%clk 0:03:08.6]} 31. Ke3 {[%clk 0:01:41.7]} 31... g6 {[%clk 0:03:05.6]}
32. g4 {[%clk 0:01:38.8]} 32... Kg7 {[%clk 0:03:03.7]} 33. g5 {[%clk 0:01:37.4]}
33... Rb2 {[%clk 0:02:59.4]} 34. Kf4 {[%clk 0:01:27.1]} 34... Rxh2 {[%clk
0:02:51.9]} 35. Ke5 {[%clk 0:01:26.3]} 35... Ra2 {[%clk 0:02:34.8]} 36. Kd6
{[%clk 0:01:24.2]} 36... Ra6 {[%clk 0:02:32.6]} 37. Rb1 {[%clk 0:01:23.7]} 37...
f6 {[%clk 0:02:25.7]} 38. Rb6 {[%clk 0:01:18.3]} 38... Ra7 {[%clk 0:02:22]} 39.
Kxc6 {[%clk 0:01:14.2]} 39... fxg5 {[%clk 0:02:18.6]} 40. Rb7+ {[%clk
0:01:13.5]} 40... Rxb7 {[%clk 0:02:15.9]} 41. Kxb7 {[%clk 0:01:13.4]} 41... h5
{[%clk 0:02:14.9]} 42. c6 {[%clk 0:01:12.4]} 42... h4 {[%clk 0:02:13.9]} 43. c7
{[%clk 0:01:11.7]} 1-0